bitfinex/quotes_SOLUSD_20250406
["timestamp","ask_amount","ask_price","bid_price","bid_amount"]
[1743922864347,16.72736167,119.37,119.36,7.62432314]
[1743922864546,16.72736167,119.37,119.36,7.76648471]
[1743922866355,16.72736167,119.37,119.36,26.41613357]
[1743922866561,82.3,119.41,119.37,19.07613357]
[1743922866864,16.72736167,119.4,119.37,19.07613357]
[1743922867851,16.72736167,119.4,119.37,0.42648471]
[1743922868054,81.8,119.41,119.37,0.42648471]
[1743922868256,16.72736167,119.4,119.37,6.29028471]
[1743922869770,16.72736167,119.39,119.37,6.29028471]
[1743922871365,16.72736167,119.38,119.36,7.34]
[1743922871579,16.72736167,119.38,119.37,0.14216157]
[1743922871749,16.72736167,119.38,119.37,0.42648471]
[1743922875581,99.02736167,119.41,119.37,19.07613357]
[1743922875755,98.52736167,119.41,119.37,19.07613357]
[1743922876260,16.72736167,119.4,119.37,19.07613357]
[1743922876580,81.8,119.41,119.37,41.66759524]
[1743922876885,81.8,119.41,119.39,19.07613357]
[1743922877061,81.8,119.41,119.4,26.39613357]
[1743922877460,98.52736167,119.41,119.4,7.74648471]
[1743922877651,107.92678992,119.41,119.4,7.74648471]
[1743922878152,81.8,119.41,119.4,13.60908471]
[1743922881277,0.03,119.45,119.41,25.24643357]
[1743922881476,0.03,119.45,119.44,45.20292349]
[1743922881683,0.03,119.45,119.44,26.39613357]
[1743922882055,0.03,119.45,119.44,7.74648471]
[1743922882281,0.03,119.45,119.44,32.25673357]
[1743922884079,0.03,119.45,119.44,58.38352349]
[1743922884780,81.8,119.5,119.45,19.07613357]
[1743922885082,108.42678992,119.5,119.45,45.20292349]
[1743922885258,26.12678992,119.49,119.45,45.20292349]
[1743922885775,26.12678992,119.49,119.45,19.07613357]
[1743922886257,26.12678992,119.48,119.45,19.07613357]
[1743922886650,26.12678992,119.46,119.45,7.32]
[1743922886957,26.12678992,119.46,119.45,7.60432314]
[1743922887486,82.3,119.5,119.46,0.42648471]
[1743922887655,82.3,119.5,119.46,19.07613357]
[1743922887656,26.12678992,119.49,119.46,19.07613357]
[1743922887854,107.92678992,119.5,119.46,19.07613357]
[1743922888072,81.8,119.5,119.46,45.20292349]
[1743922888682,81.8,119.5,119.48,0.42648471]
[1743922888859,81.8,119.5,119.49,7.72648471]
[1743922889260,0.5,119.52,119.5,0.42648471]
[1743922889563,26.12678992,119.51,119.5,0.42648471]
[1743922892090,26.62678992,119.51,119.5,0.42648471]
[1743922892582,0.5,119.5,119.48,0.14216157]
[1743922892765,26.62678992,119.49,119.48,0.14216157]
[1743922892968,26.62678992,119.49,119.48,0.42648471]
[1743922893209,26.62678992,119.49,119.47,0.14216157]
[1743922893362,26.12678992,119.48,119.47,0.42648471]
[1743922895064,26.62678992,119.48,119.47,0.42648471]
[1743922896684,26.62678992,119.48,119.44,5.8606]
[1743922896876,26.12678992,119.46,119.43,18.79181043]
[1743922897084,26.12678992,119.46,119.45,0.42648471]
[1743922897386,107.92678992,119.46,119.45,0.28432314]
[1743922898487,107.92678992,119.46,119.45,0.42648471]
[1743922899996,109.83988492,119.46,119.45,0.42648471]
[1743922901786,109.83988492,119.46,119.41,0.28432314]
[1743922901981,26.12678992,119.43,119.42,7.72648471]
[1743922902982,26.12678992,119.43,119.41,7.3]
[1743922903196,26.62678992,119.43,119.41,7.44216157]
[1743922903383,26.62678992,119.43,119.42,0.28432314]
[1743922904489,84.213095,119.46,119.42,19.07613357]
[1743922904692,109.83988492,119.46,119.42,19.07613357]
[1743922905268,26.12678992,119.45,119.44,19.07613357]
[1743922905463,109.83988492,119.46,119.44,19.07613357]
[1743922907882,83.713095,119.46,119.45,26.37613357]
[1743922908081,1.913095,119.46,119.45,26.37613357]
[1743922909781,1.913095,119.46,119.45,32.23623357]
[1743922910591,1.628895,119.46,119.45,58.36302349]
[1743922917871,1.628895,119.46,119.45,58.42602349]
[1743922918218,1.658895,119.46,119.45,58.42602349]
[1743922920879,9.5e-05,119.46,119.45,58.42602349]
[1743922921703,0.03,119.49,119.46,19.07613357]
[1743922921880,0.03,119.49,119.48,45.20292349]
[1743922925407,0.03,119.49,119.48,19.07613357]
[1743922927697,0.03,119.49,119.48,26.33613357]
[1743922930295,0.03,119.49,119.48,19.07613357]
[1743922930604,0.03,119.49,119.48,26.31613357]
[1743922930810,26.15678992,119.49,119.48,26.31613357]
[1743922931183,26.15678992,119.49,119.48,26.03181043]
[1743922931388,26.15678992,119.49,119.48,19.07613357]
[1743922931687,26.15678992,119.49,119.48,18.79181043]
[1743922931886,26.15678992,119.49,119.48,19.07613357]
[1743922937717,16.73137979,119.49,119.48,19.07613357]
[1743922942001,16.73137979,119.49,119.46,0.063]
[1743922942214,17.20137979,119.47,119.46,0.063]
[1743922943303,43.20137979,119.46,119.45,0.063]
[1743922943625,126.56167979,119.46,119.45,0.063]
[1743922944124,126.56167979,119.46,119.41,19.07613357]
[1743922944425,16.70137979,119.42,119.41,19.07613357]
[1743922944605,16.70137979,119.42,119.41,18.79181043]
[1743922945216,16.70137979,119.42,119.41,19.07613357]
[1743922945529,16.70137979,119.42,119.41,0.28432314]
[1743922945706,26.12825684,119.42,119.41,0.28432314]
[1743922947423,0.5,119.4,119.36,18.85481043]
[1743922947614,26.12825684,119.38,119.36,0.20516157]
[1743922947814,26.12825684,119.38,119.36,19.13913357]
[1743922948130,26.12825684,119.38,119.36,18.85481043]
[1743922948329,26.12825684,119.38,119.37,0.28432314]
[1743922949922,26.12825684,119.38,119.36,0.063]
[1743922949923,0.5,119.37,119.36,0.063]
[1743922950111,26.62825684,119.37,119.36,0.063]
[1743922952030,0.5,119.39,119.36,18.85481043]
[1743922952339,0.5,119.38,119.37,0.28432314]
[1743922952536,26.62825684,119.38,119.37,0.28432314]
[1743922952921,26.12825684,119.38,119.37,0.28432314]
[1743922953713,26.62825684,119.38,119.37,0.28432314]
[1743922954007,26.62825684,119.38,119.36,0.20516157]
[1743922954229,108.42825684,119.37,119.36,0.063]
[1743922956841,81.8,119.37,119.36,0.063]
[1743922957141,107.92825684,119.37,119.36,0.063]
[1743922957639,81.8,119.37,119.36,0.063]
[1743922957841,107.92825684,119.37,119.36,0.063]
[1743922958141,34.31865684,119.37,119.36,0.063]
[1743922962552,26.62825684,119.37,119.36,0.063]
[1743922963641,0.5,119.37,119.36,0.063]
[1743922963940,26.12825684,119.37,119.36,0.20516157]
[1743922966745,0.5,119.38,119.36,0.20516157]
[1743922966928,26.12825684,119.38,119.36,18.85481043]
[1743922968227,26.62825684,119.38,119.36,18.85481043]
[1743922968429,26.12825684,119.37,119.36,19.13913357]
[1743922969627,26.62825684,119.38,119.37,18.933972]
[1743922969833,26.12825684,119.38,119.37,18.933972]
[1743922970019,26.62825684,119.38,119.37,18.933972]
[1743922970527,26.12825684,119.38,119.37,18.933972]
[1743922971753,26.5,119.39,119.38,0.14216157]
[1743922971955,52.12825684,119.39,119.38,0.14216157]
[1743922972333,26.12825684,119.39,119.37,6.29048471]
[1743922972534,216.5,119.41,119.37,24.94013357]
[1743922972855,26.12825684,119.4,119.37,24.94013357]
[1743922973058,107.92825684,119.41,119.37,24.94013357]
[1743922974047,81.8,119.41,119.39,0.14216157]
[1743922974253,81.8,119.41,119.4,7.38216157]
[1743922974555,26.12825684,119.42,119.41,18.933972]
[1743922975653,26.12825684,119.43,119.42,0.14216157]
[1743922977745,107.92825684,119.44,119.42,0.14216157]
[1743922977954,107.92825684,119.44,119.43,18.933972]
[1743922978259,81.8,119.44,119.43,19.07613357]
[1743922978726,81.8,119.44,119.43,0.42648471]
[1743922978926,107.92825684,119.44,119.43,0.42648471]
[1743922979146,108.42825684,119.44,119.43,0.14216157]
[1743922979942,108.42825684,119.44,119.42,0.14216157]
[1743922979943,0.5,119.43,119.42,0.14216157]
[1743922980140,26.62825684,119.43,119.42,0.14216157]
[1743922983648,26.62825684,119.43,119.41,0.28432314]
[1743922983859,26.12825684,119.42,119.4,0.28432314]
[1743922984039,26.62825684,119.41,119.39,0.14216157]
[1743922984241,26.12825684,119.4,119.39,0.14216157]
[1743922984632,108.42825684,119.4,119.36,0.063]
[1743922984840,26.12825684,119.37,119.36,7.42516157]
[1743922985154,26.12825684,119.38,119.37,0.28432314]
[1743922985359,26.12825684,119.38,119.36,7.42516157]
[1743922985655,26.12825684,119.38,119.37,0.28432314]
[1743922986172,26.12825684,119.38,119.36,7.42516157]
[1743922986360,26.12825684,119.37,119.36,7.70948471]
[1743922986734,26.12825684,119.37,119.36,0.063]
[1743922986941,26.62825684,119.37,119.36,0.063]
[1743922987655,32.49235684,119.37,119.36,0.063]
[1743922988050,0.5,119.35,119.34,0.063]
[1743922988234,52.75651368,119.35,119.34,0.063]
[1743922989134,81.674,119.32,119.3,0.063]
[1743922989443,109.88115684,119.31,119.3,0.063]
[1743922989759,108.30225684,119.31,119.3,0.063]
[1743922992361,26.62825684,119.31,119.3,0.063]
[1743922992555,0.5,119.3,119.29,0.37768822]
[1743922992763,52.62825684,119.3,119.29,0.37768822]
[1743922993343,26.62825684,119.31,119.29,8.08417293]
[1743922993674,26.12825684,119.31,119.29,8.08417293]
[1743922993855,0.5,119.33,119.29,13.95207293]
[1743922994168,26.12825684,119.32,119.29,13.95207293]
[1743922994359,0.5,119.33,119.29,13.95207293]
[1743922994660,26.62825684,119.33,119.29,13.95207293]
[1743922994845,26.62825684,119.34,119.31,0.42648471]
[1743922996370,26.12825684,119.34,119.33,19.07613357]
[1743922996553,26.62825684,119.34,119.33,19.07613357]
[1743922996853,26.12825684,119.34,119.33,19.07613357]
[1743922997163,26.12825684,119.34,119.33,0.42648471]
[1743922997468,26.62825684,119.34,119.33,0.42648471]
[1743922997652,26.62825684,119.34,119.33,0.28432314]
[1743922998659,26.62825684,119.34,119.31,6.29338471]
[1743922999569,26.12825684,119.32,119.31,0.14216157]
[1743922999745,26.62825684,119.32,119.3,18.64964886]
[1743922999947,26.12825684,119.31,119.3,18.79181043]
[1743923000175,26.12825684,119.31,119.3,19.07613357]
[1743923000366,26.12825684,119.31,119.3,18.79181043]
[1743923001558,26.12825684,119.31,119.3,19.07613357]
[1743923002070,26.62825684,119.31,119.3,19.07613357]
[1743923002970,26.62825684,119.31,119.3,0.42648471]
[1743923005139,26.62825684,119.31,119.3,19.07613357]
[1743923009978,82.3,119.3,119.29,0.37768822]
[1743923010160,108.42825684,119.3,119.29,0.37768822]
[1743923012779,26.62825684,119.3,119.29,0.37768822]
[1743923013771,32.49575684,119.3,119.29,0.37768822]
[1743923015163,0.5,119.27,119.26,0.28321939]
[1743923015362,26.62825684,119.27,119.26,1.13287756]
[1743923018381,26.62825684,119.27,119.26,20.20901113]
[1743923018588,0.5,119.3,119.27,19.07613357]
[1743923018773,26.12825684,119.28,119.27,19.07613357]
[1743923018976,26.62825684,119.28,119.27,0.42648471]
[1743923019279,26.62825684,119.28,119.26,1.13287756]
[1743923019466,26.62825684,119.27,119.26,1.13287756]
[1743923024967,26.62825684,119.27,119.26,1.19587756]
[1743923025690,0.5,119.23,119.22,0.16993164]
[1743923025999,26.62825684,119.23,119.22,0.8496582]
[1743923027198,26.12825684,119.25,119.23,18.933972]
[1743923027389,26.12825684,119.24,119.23,19.07613357]
[1743923027900,26.62825684,119.24,119.23,19.07613357]
[1743923028277,26.12825684,119.24,119.23,19.07613357]
[1743923028478,26.62825684,119.24,119.23,19.07613357]
[1743923028696,26.12825684,119.24,119.23,19.07613357]
[1743923029692,26.62825684,119.24,119.22,0.8496582]
[1743923029994,26.12825684,119.23,119.22,0.8496582]
[1743923030203,26.62825684,119.23,119.22,0.8496582]
[1743923033705,0.5,119.24,119.23,0.42648471]
[1743923033913,26.62825684,119.25,119.23,0.42648471]
[1743923034276,26.12825684,119.25,119.23,0.42648471]
[1743923034477,108.42825684,119.26,119.23,0.42648471]
[1743923034676,26.62825684,119.25,119.23,0.42648471]
[1743923035383,0.5,119.24,119.23,0.42648471]
[1743923035594,26.12825684,119.24,119.23,0.42648471]
[1743923038399,26.62825684,119.24,119.23,0.42648471]
[1743923038581,26.12825684,119.24,119.23,0.42648471]
[1743923039103,26.12825684,119.24,119.23,19.13913357]
[1743923040802,26.62825684,119.24,119.23,19.13913357]
[1743923041012,32.49875684,119.24,119.22,0.33986328]
[1743923041211,0.5,119.24,119.23,0.16993164]
[1743923041513,0.5,119.24,119.23,19.24606521]
[1743923041685,0.5,119.24,119.23,7.60993164]
[1743923041686,26.12825684,119.24,119.23,7.60993164]
[1743923041884,26.62825684,119.24,119.23,7.60993164]
[1743923042300,26.12825684,119.24,119.23,18.8195805]
[1743923042516,26.5,119.24,119.23,0.16993164]
[1743923043015,52.62825684,119.24,119.23,0.16993164]
[1743923043226,0.5,119.24,119.23,0.16993164]
[1743923043520,26.62825684,119.24,119.23,0.16993164]
[1743923044013,26.5,119.22,119.21,0.13764463]
[1743923044317,52.62825684,119.22,119.21,0.41293389]
[1743923044913,84.62791368,119.22,119.21,0.41293389]
[1743923045101,52.62825684,119.22,119.21,0.41293389]
[1743923045817,26.62825684,119.22,119.21,0.41293389]
[1743923046015,26.12825684,119.22,119.21,0.41293389]
[1743923046318,26.62825684,119.22,119.21,0.41293389]
[1743923048410,32.49965684,119.22,119.21,0.41293389]
[1743923049126,32.49965684,119.22,119.18,0.063]
[1743923049127,26.5,119.19,119.18,0.063]
[1743923049337,52.62825684,119.19,119.18,0.063]
[1743923049613,62.98588838,119.19,119.18,0.063]
[1743923049982,52.62825684,119.19,119.18,0.063]
[1743923050612,58.50115684,119.19,119.18,0.063]
[1743923050802,52.62825684,119.19,119.18,0.063]
[1743923051381,60.06565684,119.19,119.18,0.063]
[1743923051587,54.19275684,119.19,119.18,0.063]
[1743923051888,52.62825684,119.19,119.18,0.063]
[1743923053292,26.62825684,119.19,119.18,0.063]
[1743923054713,26.12825684,119.2,119.18,0.20516157]
[1743923055431,26.12825684,119.19,119.18,0.063]
[1743923055711,26.62825684,119.19,119.18,0.20516157]
[1743923056092,0.5,119.19,119.18,0.20516157]
[1743923056293,0.5,119.2,119.18,0.20516157]
[1743923056594,26.62825684,119.19,119.18,0.20516157]
[1743923057214,0.5,119.21,119.18,0.20516157]
[1743923057425,26.62825684,119.2,119.18,0.20516157]
[1743923057601,26.12825684,119.19,119.18,0.063]
[1743923058110,26.62825684,119.19,119.18,0.063]
[1743923059015,26.12825684,119.19,119.18,0.063]
[1743923059201,26.62825684,119.19,119.18,0.063]
[1743923066833,26.12825684,119.19,119.18,0.34732314]
[1743923067139,26.62825684,119.2,119.18,0.34732314]
[1743923067340,26.12825684,119.19,119.18,0.063]
[1743923067522,26.62825684,119.19,119.18,0.063]
[1743923068821,0.5,119.19,119.18,0.063]
[1743923069032,26.62825684,119.19,119.18,0.063]
[1743923072950,135.2,119.21,119.18,0.48948471]
[1743923073239,26.12825684,119.2,119.18,0.48948471]
[1743923073448,26.12825684,119.2,119.19,19.07613357]
[1743923074743,135.2,119.21,119.19,19.07613357]
[1743923075038,26.12825684,119.2,119.19,19.07613357]
[1743923076251,135.2,119.21,119.2,0.42648471]
[1743923076541,134.7,119.21,119.2,0.42648471]
[1743923076754,26.12825684,119.22,119.2,0.42648471]
[1743923077128,26.12825684,119.21,119.2,0.42648471]
[1743923077331,26.62825684,119.21,119.2,0.42648471]
[1743923077549,0.5,119.22,119.2,0.42648471]
[1743923077721,26.12825684,119.21,119.2,0.42648471]
[1743923079843,26.62825684,119.21,119.2,0.42648471]
[1743923080241,26.12825684,119.21,119.2,0.42648471]
[1743923081639,26.15825684,119.21,119.2,0.42648471]
[1743923081821,16.80859477,119.21,119.2,0.42648471]
[1743923082344,0.03,119.21,119.2,0.42648471]
[1743923082544,16.80859477,119.21,119.2,0.42648471]
[1743923083642,17.30859477,119.21,119.2,0.42648471]
[1743923083944,16.80859477,119.21,119.2,0.42648471]
[1743923084544,0.03,119.21,119.2,0.42648471]
[1743923084843,16.80859477,119.21,119.2,0.42648471]
[1743923085948,17.30859477,119.21,119.2,0.42648471]
[1743923086249,16.80859477,119.21,119.2,0.42648471]
[1743923086423,17.30859477,119.21,119.2,0.42648471]
[1743923086623,16.80859477,119.21,119.2,0.42648471]
[1743923088847,0.03,119.21,119.2,0.42648471]
[1743923095459,0.03,119.21,119.2,0.48948471]
[1743923097940,0.03,119.21,119.2,35.91772834]
[1743923098152,0.03,119.21,119.2,41.79012834]
[1743923101869,0.03,119.21,119.2,25.01153357]
[1743923102165,0.03,119.21,119.2,41.79012834]
[1743923104167,0.03,119.21,119.2,25.01153357]
[1743923104349,0.03,119.21,119.2,19.13913357]
[1743923104862,0.03,119.21,119.2,25.01153357]
[1743923105178,0.03,119.21,119.2,41.79012834]
[1743923105543,0.03,119.21,119.2,25.01153357]
[1743923105767,0.03,119.21,119.2,41.79012834]
[1743923109174,0.03,119.21,119.2,25.01153357]
[1743923110149,0.53,119.21,119.2,26.97481043]
[1743923110349,0.53,119.21,119.2,27.25913357]
[1743923112380,0.53,119.21,119.2,0.063]
[1743923112381,17.30859477,119.21,119.2,0.063]
[1743923113574,17.30859477,119.21,119.19,17.85481043]
[1743923113774,16.77859477,119.2,119.19,18.13913357]
[1743923114275,17.27859477,119.2,119.19,18.13913357]
[1743923116179,0.5,119.19,119.18,0.063]
[1743923116387,17.27859477,119.19,119.18,0.063]
[1743923117452,23.15149477,119.19,119.18,0.063]
[1743923117777,17.27859477,119.19,119.18,0.063]
[1743923119074,16.77859477,119.19,119.18,0.063]
[1743923119266,17.27859477,119.19,119.18,0.063]
[1743923123878,23.15149477,119.19,119.18,0.063]
[1743923126086,24.72619477,119.19,119.18,0.063]
[1743923127281,0.5,119.13,119.12,0.14216157]
[1743923127589,0.5,119.13,119.12,0.42648471]
[1743923128669,0.5,119.14,119.12,0.42648471]
[1743923128868,0.5,119.13,119.12,0.42648471]
[1743923129080,0.5,119.15,119.12,17.20507948]
[1743923129284,0.5,119.15,119.12,23.08137948]
[1743923130391,0.5,119.15,119.13,18.64964886]
[1743923130565,81.8,119.18,119.13,18.64964886]
[1743923130566,0.5,119.17,119.14,0.42648471]
[1743923130894,0.5,119.17,119.16,19.07613357]
[1743923132079,17.27859477,119.17,119.16,19.07613357]
[1743923133374,0.5,119.17,119.16,19.07613357]
[1743923133701,17.27859477,119.17,119.16,19.07613357]
[1743923136392,0.5,119.17,119.16,19.07613357]
[1743923136973,17.27859477,119.17,119.16,19.07613357]
[1743923139401,0.5,119.17,119.16,19.07613357]
[1743923142302,17.27859477,119.17,119.16,19.07613357]
[1743923146600,0.5,119.17,119.16,19.07613357]
[1743923147508,17.27859477,119.17,119.16,19.07613357]
[1743923148790,0.5,119.15,119.13,18.79181043]
[1743923149087,17.27859477,119.14,119.13,18.79181043]
[1743923149292,17.27859477,119.14,119.13,19.07613357]
[1743923149834,0.5,119.14,119.13,19.07613357]
[1743923150120,0.5,119.14,119.13,26.69181043]
[1743923150529,17.27859477,119.15,119.14,0.28432314]
[1743923150827,17.27859477,119.16,119.14,0.28432314]
[1743923151798,0.5,119.15,119.14,24.95133357]
[1743923152118,0.5,119.15,119.14,19.07613357]
[1743923152716,17.27859477,119.16,119.14,19.07613357]
[1743923152919,17.27859477,119.16,119.14,24.95133357]
[1743923153115,0.5,119.16,119.14,24.95133357]
[1743923154325,17.27859477,119.17,119.14,24.95133357]
[1743923154527,0.5,119.15,119.14,24.95133357]
[1743923156429,17.27859477,119.17,119.14,24.95133357]
[1743923156625,0.5,119.15,119.14,24.95133357]
[1743923157020,16.77859477,119.16,119.14,24.95133357]
[1743923157206,0.5,119.15,119.14,24.95133357]
[1743923158443,0.5,119.15,119.14,19.07613357]
[1743923159026,17.27859477,119.16,119.14,19.07613357]
[1743923159228,0.5,119.15,119.14,24.95153357]
[1743923162127,0.03,119.18,119.16,0.28432314]
[1743923162335,0.03,119.18,119.17,26.89613357]
[1743923163538,0.03,119.18,119.17,32.77003357]
[1743923164745,0.03,119.18,119.17,49.54862834]
[1743923166432,0.03,119.18,119.17,32.77003357]
[1743923167825,0.03,119.18,119.17,49.54862834]
[1743923172642,0.03,119.21,119.18,19.07613357]
[1743923172825,0.03,119.21,119.18,35.85472834]
[1743923173027,0.03,119.21,119.2,19.07613357]
[1743923173541,0.03,119.21,119.2,17.20507948]
[1743923173715,0.03,119.21,119.2,41.72712834]
[1743923175232,0.03,119.21,119.2,24.94853357]
[1743923175757,0.03,119.21,119.2,41.72712834]
[1743923175922,0.03,119.24,119.22,0.42648471]
[1743923176242,0.03,119.24,119.23,26.83613357]
[1743923176816,17.30859477,119.24,119.23,26.83613357]
[1743923177628,0.53,119.24,119.23,26.83613357]
[1743923178026,0.03,119.24,119.23,26.83613357]
[1743923178228,17.30859477,119.24,119.23,26.83613357]
[1743923179543,17.30859477,119.24,119.23,7.76]
[1743923179741,17.30859477,119.24,119.23,8.18648471]
[1743923180138,17.30859477,119.24,119.23,7.90216157]
[1743923180649,17.30859477,119.24,119.23,8.18648471]
[1743923183659,0.53,119.24,119.23,8.18648471]
[1743923185461,17.30859477,119.24,119.23,8.18648471]
[1743923185842,0.53,119.24,119.23,8.18648471]
[1743923188258,17.30859477,119.24,119.23,8.18648471]
[1743923192361,0.53,119.24,119.23,8.18648471]
[1743923196749,17.30859477,119.24,119.23,7.76]
[1743923196932,0.5,119.23,119.22,0.14216157]
[1743923197136,17.27859477,119.23,119.22,0.14216157]
[1743923198562,0.5,119.23,119.22,0.14216157]
[1743923198747,17.27859477,119.23,119.22,0.14216157]
[1743923199254,17.30859477,119.24,119.22,0.14216157]
[1743923200465,0.5,119.23,119.22,0.14216157]
[1743923201676,16.80859477,119.24,119.22,0.14216157]
[1743923201677,17.30859477,119.24,119.22,0.14216157]
[1743923201848,0.5,119.23,119.22,0.14216157]
[1743923202866,17.30859477,119.24,119.22,0.14216157]
[1743923203064,0.5,119.23,119.22,0.14216157]
[1743923203263,17.30859477,119.24,119.22,0.14216157]
[1743923203480,0.53,119.24,119.22,0.14216157]
[1743923205074,0.5,119.23,119.22,0.14216157]
[1743923205248,0.53,119.24,119.22,0.14216157]
[1743923205448,0.53,119.24,119.23,18.64964886]
[1743923205649,0.53,119.24,119.22,18.79181043]
[1743923208972,0.5,119.23,119.22,18.933972]
[1743923209180,0.53,119.24,119.22,19.07613357]
[1743923209880,0.5,119.23,119.22,19.07613357]
[1743923210180,0.53,119.24,119.22,19.07613357]
[1743923210377,0.5,119.23,119.22,19.07613357]
[1743923210678,0.03,119.24,119.22,19.07613357]
[1743923210679,0.53,119.24,119.22,19.07613357]
[1743923210854,0.5,119.23,119.22,19.07613357]
[1743923211275,17.30859477,119.24,119.22,19.07613357]
[1743923211480,0.53,119.24,119.22,19.07613357]
[1743923211778,17.30859477,119.24,119.22,19.07613357]
[1743923216185,0.5,119.23,119.22,19.07613357]
[1743923216355,17.30859477,119.24,119.22,19.07613357]
[1743923216557,0.5,119.23,119.22,19.07613357]
[1743923216777,17.30859477,119.24,119.22,19.07613357]
[1743923217671,0.5,119.23,119.22,19.07613357]
[1743923217879,17.30859477,119.24,119.22,19.07613357]
[1743923218077,0.5,119.23,119.22,19.07613357]
[1743923218373,17.30859477,119.24,119.22,19.07613357]
[1743923218751,0.5,119.23,119.22,19.07613357]
[1743923218952,17.30859477,119.24,119.22,19.07613357]
[1743923219587,0.5,119.23,119.22,19.07613357]
[1743923219878,17.30859477,119.24,119.22,19.07613357]
[1743923220552,0.53,119.24,119.22,24.94743357]
[1743923221081,0.03,119.24,119.22,24.94743357]
[1743923221257,0.53,119.24,119.22,24.94743357]
[1743923221678,0.03,119.24,119.22,24.94743357]
[1743923222080,0.53,119.24,119.22,24.94743357]
[1743923222257,0.03,119.24,119.22,24.94743357]
[1743923222769,0.53,119.24,119.22,24.94743357]
[1743923222971,0.03,119.24,119.22,24.94743357]
[1743923223168,0.53,119.24,119.22,24.94743357]
[1743923226383,0.03,119.24,119.22,24.94743357]
[1743923226582,0.53,119.24,119.22,24.94743357]
[1743923227184,0.03,119.24,119.23,0.28432314]
[1743923227566,0.03,119.24,119.23,35.85472834]
[1743923227759,0.03,119.24,119.23,41.72572834]
[1743923227964,17.27859477,119.29,119.25,0.28432314]
[1743923228183,17.27859477,119.29,119.28,0.28432314]
[1743923230764,0.5,119.29,119.28,0.28432314]
[1743923231288,0.5,119.29,119.28,6.29498471]
[1743923232091,0.53,119.3,119.29,0.14216157]
[1743923232902,0.03,119.3,119.29,35.85472834]
[1743923234168,0.03,119.3,119.29,41.72272834]
[1743923234392,0.03,119.33,119.3,0.28432314]
[1743923234608,0.03,119.33,119.32,0.28432314]
[1743923235182,0.03,119.33,119.32,35.85472834]
[1743923235992,0.03,119.33,119.32,19.07613357]
[1743923238586,0.03,119.33,119.32,24.94263357]
[1743923241578,0.03,119.33,119.32,19.07613357]
[1743923242187,16.80859477,119.33,119.32,18.79181043]
[1743923242380,17.30859477,119.33,119.32,26.31181043]
[1743923242691,17.30859477,119.33,119.32,26.59613357]
[1743923242895,17.30859477,119.33,119.32,26.31181043]
[1743923243071,17.30859477,119.33,119.32,26.59613357]
[1743923243271,17.30859477,119.33,119.32,26.31181043]
[1743923243571,17.30859477,119.33,119.32,26.59613357]
[1743923246896,0.03,119.33,119.32,26.59613357]
[1743923247097,0.03,119.33,119.32,32.46263357]
[1743923250494,0.03,119.33,119.32,26.59613357]
[1743923250690,0.03,119.33,119.32,32.46263357]
[1743923250993,16.80859477,119.33,119.32,26.59613357]
[1743923251794,16.80859477,119.33,119.32,26.31181043]
[1743923251980,17.30859477,119.33,119.32,26.31181043]
[1743923252179,17.30859477,119.33,119.32,26.59613357]
[1743923255897,0.53,119.33,119.32,26.59613357]
[1743923257690,0.03,119.33,119.32,26.59613357]
[1743923258381,0.53,119.33,119.32,26.59613357]
[1743923258590,0.03,119.33,119.32,26.59613357]
[1743923258788,0.53,119.33,119.32,26.59613357]
[1743923260699,0.03,119.33,119.32,26.59613357]
[1743923262103,0.03,119.33,119.32,32.46263357]
[1743923264785,0.03,119.33,119.32,26.59613357]
[1743923266188,0.03,119.33,119.32,32.46263357]
[1743923269105,16.80859477,119.33,119.32,26.59613357]
[1743923272617,0.03,119.33,119.32,26.59613357]
[1743923275232,16.80859477,119.33,119.32,26.59613357]
[1743923275798,0.03,119.33,119.32,26.59613357]
[1743923276222,0.53,119.33,119.32,26.59613357]
[1743923278917,0.03,119.33,119.32,26.59613357]
[1743923279409,17.30859477,119.33,119.32,26.59613357]
[1743923279824,16.80859477,119.33,119.32,26.59613357]
[1743923280021,17.30859477,119.33,119.32,26.59613357]
[1743923280426,17.30859477,119.33,119.32,18.79181043]
[1743923280723,0.5,119.31,119.3,0.063]
[1743923281026,23.14559477,119.31,119.3,0.20516157]
[1743923281400,23.14559477,119.31,119.3,0.48948471]
[1743923282421,23.14559477,119.31,119.3,0.20516157]